bitfinex-derivatives/quotes_BTCF0:USTF0_20240910
["timestamp","ask_amount","ask_price","bid_price","bid_amount"]
[1726004002344,0.086786,57610.0,57609.0,0.06930575]
[1726004002531,0.086787,57609.0,57608.0,0.06930575]
[1726004002735,0.182287,57609.0,57607.0,0.06930575]
[1726004003035,0.08679,57607.0,57606.0,0.06930575]
[1726004003234,0.086792,57606.0,57605.0,0.06930575]
[1726004003535,0.086792,57606.0,57604.0,0.05195762]
[1726004003739,0.1548,57608.0,57596.0,0.17347391]
[1726004003740,0.086796,57603.0,57602.0,0.05195762]
[1726004004131,0.086798,57602.0,57601.0,0.05195762]
[1726004004641,0.206793,57605.0,57596.0,0.086805]
[1726004004642,0.086799,57601.0,57600.0,0.05195762]
[1726004005740,0.086801,57600.0,57599.0,0.05195762]
[1726004006245,0.086801,57600.0,57596.0,0.15611075]
[1726004006246,0.086802,57599.0,57598.0,0.05195762]
[1726004006543,0.086804,57598.0,57597.0,0.05190618]
[1726004006933,0.086805,57597.0,57596.0,0.086805]
[1726004008032,0.086805,57597.0,57596.0,0.13868948]
[1726004008438,0.086805,57597.0,57596.0,0.13867085]
[1726004009248,0.087805,57597.0,57596.0,0.13867085]
[1726004009540,0.087805,57597.0,57596.0,0.086805]
[1726004010743,0.086805,57597.0,57596.0,0.086805]
[1726004012738,0.11447381,57597.0,57596.0,0.086805]
[1726004014443,0.11547381,57597.0,57596.0,0.086805]
[1726004017550,0.086811,57593.0,57592.0,0.05186585]
[1726004017752,0.086811,57593.0,57588.0,0.0471]
[1726004017753,0.086817,57589.0,57588.0,0.0471]
[1726004017943,0.173634,57589.0,57588.0,0.0471]
[1726004018441,0.173634,57589.0,57588.0,0.133919]
[1726004018442,0.086817,57589.0,57588.0,0.133919]
[1726004019851,0.086817,57589.0,57588.0,0.140919]
[1726004020050,0.086817,57589.0,57588.0,0.148919]
[1726004020449,0.086817,57589.0,57588.0,0.146919]
[1726004021845,0.086817,57589.0,57588.0,0.145919]
[1726004022156,0.086817,57589.0,57588.0,0.098819]
[1726004022553,0.11461557,57589.0,57588.0,0.098819]
[1726004025375,0.11461557,57589.0,57588.0,0.012]
[1726004025576,0.20143257,57589.0,57588.0,0.012]
[1726004027068,0.02779857,57589.0,57588.0,0.012]
[1726004027384,0.086813,57592.0,57591.0,0.086814]
[1726004028081,0.11552327,57592.0,57591.0,0.086814]
[1726004028985,0.11552327,57592.0,57591.0,0.089814]
[1726004029182,0.11552327,57592.0,57591.0,0.14167985]
[1726004029978,0.11552327,57592.0,57591.0,0.14467985]
[1726004030674,0.11552327,57592.0,57591.0,0.092814]
[1726004032370,0.11552327,57592.0,57591.0,0.16211975]
[1726004033482,0.11552327,57592.0,57591.0,0.092814]
[1726004037381,0.11552327,57592.0,57591.0,0.16216281]
[1726004038282,0.11552327,57592.0,57591.0,0.092814]
[1726004041790,0.0868,57601.0,57591.0,0.31866512]
[1726004041993,0.0868,57601.0,57600.0,0.0868]
[1726004042293,0.00192001,57603.0,57600.0,0.06936897]
[1726004042479,0.086799,57601.0,57600.0,0.06936897]
[1726004042684,0.086799,57601.0,57600.0,0.15616997]
[1726004042879,0.086799,57601.0,57600.0,0.086801]
[1726004043686,0.086799,57601.0,57600.0,0.087801]
[1726004044382,0.086799,57601.0,57600.0,0.15716997]
[1726004044578,0.02775895,57605.0,57604.0,0.086795]
[1726004044782,0.136283,57612.0,57604.0,0.206795]
[1726004044995,0.136283,57612.0,57610.0,0.05201371]
[1726004045290,0.136283,57612.0,57611.0,0.05201371]
[1726004045494,0.086786,57610.0,57606.0,0.06935162]
[1726004045682,0.0495,57612.0,57607.0,0.06935162]
[1726004045991,0.004,57622.0,57611.0,0.12]
[1726004046191,0.00596,57623.0,57620.0,0.05197885]
[1726004046192,0.086766,57623.0,57620.0,0.05197885]
[1726004046490,0.086766,57623.0,57621.0,0.12]
[1726004046491,0.02893693,57623.0,57621.0,0.12]
[1726004046679,0.004,57629.0,57621.0,0.12]
[1726004046879,0.004,57629.0,57625.0,0.05189302]
[1726004046880,0.090757,57629.0,57625.0,0.05189302]
[1726004047084,0.090757,57629.0,57626.0,0.0489]
[1726004047285,0.090757,57629.0,57626.0,0.10079302]
[1726004047481,0.090757,57629.0,57626.0,0.0489]
[1726004047887,0.090757,57629.0,57626.0,0.0961]
[1726004048590,0.091757,57629.0,57626.0,0.0971]
[1726004049884,0.091757,57629.0,57626.0,0.0981]
[1726004051395,0.005,57629.0,57628.0,0.086759]
[1726004051590,0.001,57629.0,57628.0,0.086759]
[1726004052598,0.001,57629.0,57628.0,0.087759]
[1726004054285,0.086742,57639.0,57635.0,0.086747]
[1726004054986,0.11462475,57639.0,57635.0,0.086747]
[1726004055490,0.11562475,57639.0,57635.0,0.087747]
[1726004055997,0.11562475,57639.0,57635.0,0.088747]
[1726004057393,0.11562475,57639.0,57635.0,0.002]
[1726004057591,0.11562475,57639.0,57637.0,0.086744]
[1726004058393,0.02888275,57639.0,57638.0,0.086743]
[1726004058890,0.001,57639.0,57638.0,0.086743]
[1726004059391,0.001,57639.0,57638.0,0.132543]
[1726004059593,0.001,57639.0,57638.0,0.180143]
[1726004059897,0.001,57639.0,57638.0,0.181143]
[1726004060300,0.086741,57640.0,57638.0,0.181143]
[1726004060498,0.001,57639.0,57638.0,0.182143]
[1726004061189,0.086741,57640.0,57638.0,0.181143]
[1726004061390,0.001,57639.0,57638.0,0.182143]
[1726004063501,0.087741,57640.0,57638.0,0.182143]
[1726004063701,0.087741,57640.0,57639.0,0.086742]
[1726004063907,0.087741,57640.0,57639.0,0.206742]
[1726004064301,0.086741,57640.0,57639.0,0.206742]
[1726004065296,0.087741,57640.0,57639.0,0.207742]
[1726004066099,0.087741,57640.0,57639.0,0.208742]
[1726004072607,0.11586295,57640.0,57639.0,0.208742]
[1726004072801,0.087741,57640.0,57639.0,0.208742]
[1726004075615,0.087741,57640.0,57639.0,0.26063502]
[1726004076904,0.001,57640.0,57639.0,0.26063502]
[1726004077102,0.001,57640.0,57639.0,0.208742]
[1726004077713,0.001,57640.0,57639.0,0.27793318]
[1726004079509,0.001,57640.0,57639.0,0.208742]
[1726004079712,0.001,57640.0,57639.0,0.729222]
[1726004080007,0.090729,57648.0,57639.0,1.329222]
[1726004080208,0.086728,57648.0,57647.0,0.12]
[1726004080617,0.086728,57648.0,57647.0,0.18927724]
[1726004080908,0.18978257,57648.0,57647.0,0.20673]
[1726004081112,0.21790012,57648.0,57647.0,0.20673]
[1726004081509,0.14244159,57648.0,57647.0,0.20673]
[1726004082311,0.05571359,57648.0,57647.0,0.20673]
[1726004082702,0.13066542,57648.0,57647.0,0.20673]
[1726004082912,0.15878297,57648.0,57647.0,0.20773]
[1726004083113,0.05571359,57648.0,57647.0,0.20773]
[1726004083412,0.05571336,57648.0,57647.0,0.20673]
[1726004083613,0.05571336,57648.0,57647.0,0.20773]
[1726004087207,0.14244136,57648.0,57647.0,0.001]
[1726004087408,0.27756936,57648.0,57647.0,0.001]
[1726004088021,0.24945204,57648.0,57647.0,0.001]
[1726004096122,0.33103316,57648.0,57647.0,0.001]
[1726004100934,0.45119198,57648.0,57647.0,0.001]
[1726004101932,0.33103316,57648.0,57647.0,0.001]
[1726004102332,0.45119198,57648.0,57647.0,0.001]
[1726004103037,0.24945204,57648.0,57647.0,0.001]
[1726004105524,0.24945204,57648.0,57647.0,0.05295908]
[1726004106027,0.24945204,57648.0,57647.0,0.001]
[1726004108137,0.24945204,57648.0,57647.0,0.002]
[1726004111044,0.33618004,57648.0,57647.0,0.002]
[1726004112730,0.3643006,57648.0,57647.0,0.002]
[1726004116629,0.46738579,57648.0,57647.0,0.002]
[1726004117637,0.41898579,57648.0,57647.0,0.002]
[1726004118045,0.36946223,57648.0,57647.0,0.002]
[1726004124037,0.48962105,57648.0,57647.0,0.002]
[1726004124445,0.36946223,57648.0,57647.0,0.002]
[1726004126044,0.28778004,57648.0,57647.0,0.002]
[1726004127448,0.28778004,57648.0,57647.0,0.07127724]
[1726004129346,0.28778004,57648.0,57647.0,0.002]
[1726004130642,0.20105204,57648.0,57647.0,0.002]
[1726004133154,0.28245988,57648.0,57647.0,0.002]
[1726004141055,0.20105204,57648.0,57647.0,0.002]
[1726004145469,0.20105204,57648.0,57647.0,0.07127724]
[1726004145655,0.28778004,57648.0,57647.0,0.07127724]
[1726004145856,0.260199,57645.0,57644.0,0.08659655]
[1726004146572,0.173474,57642.0,57641.0,0.10392415]
[1726004146871,0.173474,57642.0,57640.0,0.06942281]
[1726004146872,0.086739,57641.0,57640.0,0.06942281]
[1726004147276,0.173478,57641.0,57640.0,0.06942281]
[1726004148662,0.173478,57641.0,57640.0,0.07042281]
[1726004148862,0.174478,57641.0,57640.0,0.07142281]
[1726004149579,0.174478,57641.0,57640.0,0.002]
[1726004151577,0.20232672,57641.0,57640.0,0.002]
[1726004151773,0.20232672,57641.0,57640.0,0.0540295]
[1726004156883,0.20232672,57641.0,57640.0,0.002]
[1726004157775,0.23045015,57641.0,57640.0,0.002]
[1726004159875,0.23045174,57641.0,57640.0,0.002]
[1726004169792,0.33356069,57641.0,57640.0,0.002]
[1726004170881,0.20232672,57641.0,57640.0,0.002]
[1726004173287,0.20232672,57641.0,57640.0,0.0540295]
[1726004176799,0.20232672,57641.0,57640.0,0.002]
[1726004178899,0.20232672,57641.0,57640.0,0.05406623]
[1726004181891,0.20232672,57641.0,57640.0,0.002]
[1726004182299,0.32232672,57641.0,57640.0,0.002]
[1726004182898,0.20232672,57641.0,57640.0,0.002]
[1726004186003,0.28452946,57641.0,57640.0,0.002]
[1726004188307,0.2845336,57641.0,57640.0,0.002]
[1726004194003,0.20232672,57641.0,57640.0,0.002]
[1726004200117,0.11558772,57641.0,57640.0,0.07137266]
[1726004201114,0.11558772,57641.0,57640.0,0.002]
[1726004201819,0.086742,57639.0,57638.0,0.17345883]
[1726004202020,0.086742,57639.0,57638.0,0.27917255]
[1726004202216,0.086742,57639.0,57638.0,0.17345883]
[1726004202522,0.086742,57639.0,57638.0,0.27916192]
[1726004202731,0.086742,57639.0,57638.0,0.086743]
[1726004203223,0.086742,57639.0,57638.0,0.17345883]
[1726004203422,0.086742,57639.0,57638.0,0.086743]
[1726004203723,0.086742,57639.0,57638.0,0.17345883]
[1726004204425,0.086742,57639.0,57637.0,0.1673]
[1726004204426,0.086743,57638.0,57637.0,0.1673]
[1726004204720,0.086743,57638.0,57637.0,0.35972003]
[1726004204918,0.086743,57638.0,57637.0,0.44646549]
[1726004207218,0.086743,57638.0,57637.0,0.254045]
[1726004209014,0.16650534,57638.0,57637.0,0.254045]
[1726004210029,0.086745,57637.0,57636.0,0.0477]
[1726004210252,0.16650734,57637.0,57636.0,0.0477]
[1726004210728,0.11486914,57637.0,57636.0,0.0477]
[1726004211126,0.086745,57637.0,57636.0,0.0477]
[1726004211816,0.087745,57637.0,57636.0,0.0477]
[1726004212125,0.11586855,57637.0,57636.0,0.0477]
[1726004212324,0.087745,57637.0,57636.0,0.0477]
[1726004219634,0.087745,57637.0,57636.0,0.13444515]
[1726004224637,0.087745,57637.0,57636.0,0.09974986]
[1726004224842,0.087745,57637.0,57636.0,0.0477]
[1726004228642,0.11586884,57637.0,57636.0,0.0477]
[1726004228842,0.087745,57637.0,57636.0,0.0477]
[1726004229339,0.11586877,57637.0,57636.0,0.0477]
[1726004230345,0.087745,57637.0,57636.0,0.0477]
[1726004230644,0.087745,57637.0,57636.0,0.134446]
[1726004231137,0.087745,57637.0,57636.0,0.18649586]
[1726004231934,0.087745,57637.0,57636.0,0.22119115]
[1726004233346,0.087745,57637.0,57636.0,0.32692235]
[1726004236850,0.087745,57637.0,57636.0,0.32693131]
[1726004238850,0.19113366,57637.0,57636.0,0.134446]
[1726004239039,0.21925744,57637.0,57636.0,0.134446]
[1726004240257,0.11586878,57637.0,57636.0,0.134446]
[1726004246755,0.19122661,57637.0,57636.0,0.134446]
[1726004246951,0.087745,57637.0,57636.0,0.24015825]
[1726004253855,0.087745,57637.0,57636.0,0.134446]
[1726004255456,0.087745,57637.0,57636.0,0.0477]
[1726004261853,0.087745,57637.0,57636.0,0.15320051]
[1726004264262,0.17449,57637.0,57636.0,0.15320051]
[1726004266667,0.17449,57637.0,57636.0,0.15318918]
[1726004270664,0.17449,57637.0,57636.0,0.10548918]
[1726004270665,0.261235,57637.0,57636.0,0.10548918]
[1726004270872,0.261235,57637.0,57629.0,0.0472]
[1726004270873,0.173496,57635.0,57634.0,0.08674736]
[1726004271070,0.1735,57634.0,57633.0,0.08674736]
[1726004273068,0.086751,57633.0,57632.0,0.08674736]
[1726004273366,0.086751,57633.0,57632.0,0.19249435]
[1726004273979,0.086751,57633.0,57632.0,0.10574699]
[1726004274370,0.086751,57633.0,57632.0,0.10674699]
[1726004274571,0.086751,57633.0,57632.0,0.10874699]
[1726004276074,0.086751,57633.0,57632.0,0.1954628]
[1726004276876,0.173502,57633.0,57632.0,0.15908846]
[1726004277072,0.173502,57633.0,57632.0,0.07237265]
[1726004278383,0.20212912,57633.0,57632.0,0.07237265]
[1726004278774,0.20212912,57633.0,57632.0,0.003]
[1726004283982,0.11537812,57633.0,57632.0,0.003]
[1726004284684,0.11537812,57633.0,57632.0,0.19540893]
[1726004285188,0.11537812,57633.0,57632.0,0.21446412]
[1726004285489,0.11537812,57633.0,57632.0,0.108771]
[1726004286478,0.11537812,57633.0,57632.0,0.19546234]
[1726004286678,0.11537812,57633.0,57632.0,0.108771]
[1726004286886,0.11537812,57633.0,57632.0,0.19546186]
[1726004287683,0.20212912,57633.0,57632.0,0.19546186]
[1726004288386,0.20212912,57633.0,57632.0,0.108771]
[1726004288779,0.20212912,57633.0,57632.0,0.19546346]
[1726004289384,0.20212912,57633.0,57632.0,0.108771]
[1726004289685,0.20212912,57633.0,57632.0,0.08969445]
[1726004289889,0.11537812,57633.0,57632.0,0.08969445]
[1726004291083,0.11537812,57633.0,57632.0,0.19587677]
[1726004291778,0.11537812,57633.0,57632.0,0.08969529]
[1726004291982,0.11537812,57633.0,57632.0,0.003]
[1726004296893,0.11537812,57633.0,57632.0,0.05503459]
[1726004298180,0.11537812,57633.0,57632.0,0.003]
[1726004298384,0.11537812,57633.0,57632.0,0.089753]
[1726004298993,0.11537812,57633.0,57632.0,0.28318854]
[1726004299384,0.11537812,57633.0,57632.0,0.28324598]
[1726004299694,0.11537812,57633.0,57632.0,0.19649325]
[1726004302195,0.11537812,57633.0,57632.0,0.19687611]
[1726004305100,0.11537812,57633.0,57632.0,0.19690677]
[1726004306193,0.086741,57640.0,57633.0,0.086751]
[1726004306499,0.086741,57640.0,57639.0,0.2934633]
[1726004306696,0.11514173,57640.0,57639.0,0.206737]
[1726004307089,0.02840073,57640.0,57639.0,0.206737]
[1726004307288,0.086738,57642.0,57641.0,0.086739]
[1726004307996,0.33202001,57651.0,57643.0,0.086735]
[1726004308200,0.33202001,57651.0,57643.0,0.206735]
[1726004308201,0.086734,57644.0,57643.0,0.206735]
[1726004308404,0.004,57651.0,57643.0,0.206735]
[1726004308598,0.086727,57650.0,57645.0,0.05198733]
[1726004308901,0.004,57654.0,57648.0,0.05198733]
[1726004309196,0.086716,57657.0,57656.0,0.086716]
[1726004309402,0.12,57664.0,57659.0,0.086712]
[1726004309403,0.00192001,57660.0,57659.0,0.086712]
[1726004309583,0.004,57664.0,57649.0,0.1008]
[1726004309584,0.004,57664.0,57663.0,0.086706]
[1726004309786,0.3301,57671.0,57664.0,0.086704]
[1726004309787,0.086702,57666.0,57664.0,0.086704]
[1726004309994,0.00192001,57671.0,57670.0,0.086695]
[1726004310193,0.090684,57678.0,57670.0,0.086695]
[1726004310194,0.19416561,57678.0,57672.0,0.086692]
[1726004310385,0.19416561,57678.0,57674.0,0.086689]
[1726004310386,0.086684,57678.0,57674.0,0.086689]
[1726004310592,0.086685,57677.0,57674.0,0.086689]
[1726004311296,0.086685,57677.0,57673.0,0.12]
[1726004311502,0.086687,57676.0,57673.0,0.12]
[1726004311687,0.086688,57675.0,57673.0,0.12]
[1726004312396,0.086688,57675.0,57673.0,0.121]
[1726004313300,0.087688,57675.0,57673.0,0.122]
[1726004314804,0.001,57675.0,57673.0,0.122]
[1726004315097,0.004,57681.0,57680.0,0.08668]
[1726004315294,0.00192001,57685.0,57680.0,0.12]
[1726004315499,0.02761527,57690.0,57684.0,0.12]
[1726004315694,0.02761527,57690.0,57689.0,0.086667]
[1726004315899,0.08666,57694.0,57689.0,0.206667]
[1726004316089,0.086661,57693.0,57689.0,0.206667]
[1726004316504,0.086664,57692.0,57689.0,0.206667]
[1726004316895,0.44304237,57697.0,57689.0,0.12]
[1726004317100,0.11502236,57697.0,57694.0,0.12]
[1726004317400,0.086657,57696.0,57694.0,0.12]
[1726004317602,0.086657,57696.0,57694.0,0.206658]
[1726004318696,0.086657,57696.0,57694.0,0.207658]
[1726004319807,0.11471289,57696.0,57694.0,0.208658]
[1726004327100,0.11471289,57696.0,57694.0,0.122]
[1726004327313,0.11471289,57696.0,57695.0,0.086658]
[1726004328208,0.02805589,57696.0,57695.0,0.086658]
[1726004328409,0.004,57700.0,57699.0,0.086652]
[1726004328612,0.08665,57700.0,57699.0,0.20665]
[1726004329711,0.004,57705.0,57699.0,0.12]
[1726004329919,0.02790159,57707.0,57704.0,0.12]
[1726004330103,0.090632,57713.0,57704.0,0.12]
[1726004330304,0.11552574,57713.0,57708.0,0.12]
[1726004330504,0.11552574,57713.0,57701.0,0.086648]
[1726004330505,0.11552574,57713.0,57712.0,0.206632]
[1726004330700,0.11552574,57713.0,57704.0,0.004]
[1726004330701,0.086633,57712.0,57704.0,0.004]
[1726004330908,0.086633,57712.0,57711.0,0.12]
[1726004331117,0.086633,57712.0,57711.0,0.206634]
[1726004332306,0.086633,57712.0,57711.0,0.208634]
[1726004332809,0.086633,57712.0,57711.0,0.122]
[1726004333002,0.02757088,57714.0,57711.0,0.208634]
[1726004333003,0.11420088,57714.0,57711.0,0.208634]
[1726004333317,0.08663,57714.0,57711.0,0.122]
[1726004333617,0.004,57719.0,57711.0,0.122]
[1726004333618,0.086627,57716.0,57711.0,0.122]
[1726004333811,0.086627,57716.0,57715.0,0.12]
[1726004334406,0.11468853,57719.0,57715.0,0.12]
[1726004334611,0.086623,57719.0,57715.0,0.12]
[1726004334809,0.004,57722.0,57715.0,0.12]
[1726004334810,0.086623,57718.0,57716.0,0.086626]
[1726004335319,0.086625,57717.0,57716.0,0.086626]
[1726004336018,0.086625,57717.0,57716.0,0.087626]
[1726004337217,0.086625,57717.0,57716.0,0.002]
[1726004337218,0.17325,57717.0,57716.0,0.002]
[1726004338016,0.086635,57710.0,57709.0,0.004]
[1726004338227,0.206632,57713.0,57703.0,0.12]
[1726004338515,0.086644,57704.0,57703.0,0.12]
[1726004339125,0.086644,57704.0,57703.0,0.086646]
[1726004339321,0.086644,57704.0,57703.0,0.206646]
[1726004340523,0.086644,57704.0,57703.0,0.207646]
[1726004341413,0.11479205,57704.0,57703.0,0.207646]
[1726004341619,0.11679205,57704.0,57703.0,0.208646]
[1726004342416,0.11679205,57704.0,57703.0,0.002]
[1726004343018,0.20343805,57704.0,57703.0,0.002]
[1726004344812,1.32331805,57704.0,57703.0,0.002]
[1726004345014,1.32331805,57704.0,57696.0,0.004]
[1726004345015,0.086655,57697.0,57696.0,0.004]
[1726004345214,1.23667205,57704.0,57691.0,0.12]
[1726004345215,0.086662,57693.0,57691.0,0.12]
[1726004345722,0.086666,57690.0,57689.0,0.12]
[1726004346126,0.086666,57690.0,57688.0,0.0454]
[1726004347211,0.086666,57690.0,57689.0,0.003]
[1726004347829,0.08667,57688.0,57682.0,0.334277]
[1726004348018,0.08667,57688.0,57683.0,0.086675]
[1726004349320,0.08767,57688.0,57683.0,0.086675]
[1726004349531,0.086672,57686.0,57683.0,0.086675]
[1726004350617,0.087672,57686.0,57683.0,0.086675]
[1726004351834,0.088672,57686.0,57683.0,0.086675]
[1726004352022,0.11658752,57686.0,57683.0,0.086675]
[1726004352225,0.11658752,57686.0,57685.0,0.05198733]
[1726004352424,0.11658752,57686.0,57684.0,0.05198733]
[1726004352620,0.11658752,57686.0,57685.0,0.2]
[1726004353725,0.11658752,57686.0,57685.0,0.286673]
[1726004353920,0.11658752,57686.0,57685.0,0.33844595]
[1726004354136,0.11658752,57686.0,57685.0,0.286673]
[1726004355131,0.11758752,57686.0,57685.0,0.286673]
[1726004355934,0.11758752,57686.0,57685.0,0.33843808]
[1726004356133,0.11758752,57686.0,57685.0,0.286673]
[1726004360435,0.11758752,57686.0,57685.0,0.33843808]
[1726004362635,0.11758752,57686.0,57685.0,0.286673]
[1726004362838,0.11758752,57686.0,57685.0,0.33843371]
[1726004363024,0.11758752,57686.0,57685.0,0.286673]
[1726004366136,0.11758752,57686.0,57685.0,0.206673]
[1726004371542,0.11758752,57686.0,57685.0,0.25848881]
[1726004371935,0.11758752,57686.0,57685.0,0.206673]
[1726004372139,0.11758752,57686.0,57685.0,0.25848881]
[1726004373134,0.11758752,57686.0,57685.0,0.206673]
[1726004373335,0.11758752,57686.0,57685.0,0.25848881]
[1726004374346,0.11758752,57686.0,57685.0,0.31274618]
[1726004375242,0.11758752,57686.0,57685.0,0.41685221]
[1726004375453,0.11758752,57686.0,57685.0,0.31274618]
[1726004375639,0.11758752,57686.0,57685.0,0.41685221]
[1726004377944,0.11758752,57686.0,57685.0,0.31274618]
[1726004381240,0.11758752,57686.0,57685.0,0.206673]
[1726004389453,0.11758752,57686.0,57685.0,0.31282588]
[1726004390252,0.11758752,57686.0,57685.0,0.31283728]
[1726004396355,0.11758752,57686.0,57685.0,0.206673]
[1726004396655,0.11758752,57686.0,57685.0,0.27601871]
[1726004399545,0.11758752,57686.0,57678.0,0.13246893]
[1726004399546,0.086679,57681.0,57680.0,0.08668247]
[1726004399753,0.173364,57679.0,57678.0,0.06934929]
[1726004399958,0.173364,57679.0,57675.0,0.05202019]
[1726004399959,0.131585,57679.0,57675.0,0.05202019]
[1726004400163,0.173376,57675.0,57674.0,0.05202019]
[1726004400456,0.086698,57668.0,57667.0,0.004]
[1726004400656,0.086698,57668.0,57665.0,0.05202019]
[1726004400657,0.086701,57666.0,57665.0,0.05202019]
[1726004400858,0.11480439,57666.0,57665.0,0.05202019]
[1726004401063,0.086703,57665.0,57664.0,0.13872419]
[1726004401257,0.086703,57665.0,57664.0,0.086704]
[1726004403062,0.086703,57665.0,57664.0,0.091704]
[1726004403663,0.086703,57665.0,57664.0,0.096704]
[1726004403853,0.11541846,57665.0,57664.0,0.096704]
[1726004411069,0.72236146,57665.0,57664.0,0.01]
[1726004413473,0.20212146,57665.0,57664.0,0.01]
[1726004419265,0.11541846,57665.0,57664.0,0.096704]
[1726004428285,0.11541846,57665.0,57664.0,0.16605329]
[1726004429071,0.11541846,57665.0,57664.0,0.096704]
[1726004429269,0.11541846,57665.0,57664.0,0.20450734]
[1726004434679,0.02871546,57665.0,57664.0,0.20450734]
[1726004434885,0.086694,57671.0,57668.0,0.086698]
[1726004435083,0.086694,57671.0,57669.0,0.06936364]
[1726004436277,0.087694,57671.0,57669.0,0.06936364]
[1726004436990,0.086695,57670.0,57669.0,0.06936364]
[1726004437383,0.086697,57669.0,57668.0,0.086698]
[1726004438976,0.086697,57669.0,57668.0,0.087698]
[1726004440389,0.086697,57669.0,57668.0,0.088698]
[1726004441481,0.086697,57669.0,57668.0,0.28376123]
[1726004443375,0.02887719,57671.0,57670.0,0.17339]
[1726004443581,0.004,57679.0,57670.0,0.31507484]
[1726004443782,0.086683,57679.0,57678.0,0.086683]
[1726004443984,0.086683,57679.0,57678.0,0.1560068]
[1726004444189,0.086683,57679.0,57678.0,0.086683]
[1726004444387,0.086683,57679.0,57678.0,0.1560068]
[1726004444991,0.086683,57679.0,57678.0,0.206683]
[1726004445287,0.090683,57679.0,57678.0,0.207683]
[1726004445990,0.091683,57679.0,57678.0,0.206683]
[1726004446290,0.091683,57679.0,57678.0,0.27592721]
[1726004446491,0.091683,57679.0,57678.0,0.206683]
[1726004447189,0.091683,57679.0,57678.0,0.27592721]
[1726004447384,0.091683,57679.0,57678.0,0.206683]
[1726004447584,0.090683,57679.0,57678.0,0.206683]
[1726004447887,0.091683,57679.0,57678.0,0.206683]
[1726004448086,0.089683,57679.0,57678.0,0.206683]
[1726004448282,0.093683,57679.0,57678.0,0.206683]
[1726004448684,0.089683,57679.0,57678.0,0.206683]
[1726004448884,0.093683,57679.0,57678.0,0.206683]
[1726004452392,0.093683,57679.0,57678.0,0.086683]
[1726004452591,0.093683,57679.0,57678.0,0.13857667]
[1726004452785,0.093683,57679.0,57678.0,0.086683]
[1726004452985,0.086683,57678.0,57677.0,0.05189367]
[1726004453698,0.007,57679.0,57676.0,0.18527967]
[1726004453699,0.086685,57677.0,57676.0,0.18527967]
[1726004454992,0.087685,57677.0,57676.0,0.18527967]
[1726004455295,0.089685,57677.0,57676.0,0.09859367]
[1726004456390,0.089685,57677.0,57676.0,0.0467]
[1726004461298,0.086686,57676.0,57675.0,0.086688]
[1726004462494,0.087686,57676.0,57675.0,0.086688]
[1726004465621,0.11526708,57676.0,57675.0,0.086688]
[1726004466024,0.086689,57674.0,57673.0,0.12]
[1726004467320,0.086689,57674.0,57673.0,0.122]
[1726004468522,0.086689,57674.0,57673.0,0.124]
[1726004469915,0.086689,57674.0,57673.0,0.122]
[1726004470114,0.086689,57674.0,57673.0,0.124]
[1726004470815,0.086689,57674.0,57673.0,0.122]
[1726004471622,0.086689,57674.0,57673.0,0.12]
[1726004471826,0.087689,57674.0,57673.0,0.12]
[1726004474128,0.086695,57670.0,57669.0,0.08665475]
[1726004474319,0.086695,57670.0,57654.0,0.414299]
[1726004474320,0.086704,57664.0,57663.0,0.08665475]
[1726004474625,0.086704,57664.0,57654.0,0.00088]
[1726004474626,0.086709,57661.0,57660.0,0.05195769]
[1726004474821,0.086713,57658.0,57657.0,0.05195769]
[1726004475017,0.086716,57656.0,57653.0,0.05195769]
[1726004475215,0.12,57658.0,57651.0,0.004]
[1726004475216,0.086721,57653.0,57651.0,0.004]
[1726004475412,0.12,57654.0,57648.0,0.05196638]
[1726004475413,0.086725,57650.0,57648.0,0.05196638]
[1726004475717,0.086737,57642.0,57641.0,0.004]
[1726004475920,0.086737,57642.0,57639.0,0.0518797]
[1726004475921,0.52044,57642.0,57639.0,0.0518797]
[1726004476123,0.08674,57640.0,57639.0,0.0518797]
[1726004476512,0.08674,57640.0,57636.0,0.35481473]
[1726004477215,0.08674,57640.0,57633.0,0.12]
[1726004477216,0.12,57640.0,57633.0,0.0518797]
[1726004477418,0.12,57640.0,57631.0,0.0518797]
[1726004477419,0.086752,57633.0,57631.0,0.0518797]
[1726004477620,0.12,57636.0,57625.0,0.0493]
[1726004477621,0.12,57636.0,57627.0,0.0518797]
[1726004477930,0.12,57636.0,57626.0,0.0518797]
[1726004477931,0.124,57636.0,57626.0,0.0518797]
[1726004478228,0.12,57627.0,57623.0,0.06927692]
[1726004478438,0.52056,57635.0,57617.0,0.004]
[1726004478439,0.004,57632.0,57617.0,0.004]
[1726004478619,1.23668,57618.0,57610.0,0.0482]
[1726004478926,0.086777,57616.0,57610.0,0.0482]
[1726004480625,0.086777,57616.0,57608.0,0.086788]
[1726004480924,0.087777,57616.0,57610.0,0.014]
[1726004482528,0.087777,57616.0,57608.0,0.100788]
[1726004482716,0.086778,57615.0,57610.0,0.014]
[1726004483322,0.086778,57615.0,57610.0,0.028]
[1726004484118,0.087778,57615.0,57610.0,0.014]
[1726004485128,0.088778,57615.0,57610.0,0.028]
[1726004486730,0.08678,57614.0,57610.0,0.028]
[1726004487821,0.08678,57614.0,57610.0,0.014]
[1726004488027,0.08778,57614.0,57610.0,0.100786]
[1726004488228,0.086781,57613.0,57610.0,0.114786]
[1726004489025,0.086784,57612.0,57610.0,0.114786]
[1726004491138,0.086784,57612.0,57610.0,0.105786]
[1726004491337,0.086784,57611.0,57610.0,0.105786]
[1726004491737,0.086784,57611.0,57610.0,0.096786]
[1726004494131,0.086777,57616.0,57610.0,0.096786]
[1726004494431,0.086784,57611.0,57610.0,0.096786]
[1726004496437,0.086784,57611.0,57610.0,0.091786]
[1726004496744,0.086784,57611.0,57610.0,0.096786]
[1726004499332,0.0282287,57617.0,57613.0,0.086779]